fUSD/lending_fUSD_20260321
["ID","MTS","AMOUNT","RATE_DAILY","PERIOD"]
[408680095,1774110645286,-151.0,0.00015966,2]
[408680096,1774110645296,-172.178234,0.00015966,2]
[408680097,1774110645305,-172.178234,0.00015966,2]
[408680098,1774110645315,-172.178234,0.00015966,2]
[408680099,1774110645324,-172.178234,0.00015966,2]
[408680100,1774110645334,-151.0,0.00015966,2]
[408680101,1774110645343,-167.964343,0.00015966,2]
[408680102,1774110645353,-495.89373,0.00015966,2]
[408680103,1774110645363,-495.89373,0.00015966,2]
[408680104,1774110645372,-2422.771814,0.00015966,2]
[408680105,1774110645382,-495.89373,0.00015966,2]
[408680106,1774110645391,-2422.771814,0.00015966,2]
[408680107,1774110645401,-495.89373,0.00015966,2]
[408680108,1774110645410,-2422.771814,0.00015966,2]
[408680109,1774110645419,-2422.771814,0.00015966,2]
[408680110,1774110645428,-151.0,0.00015966,2]
[408680111,1774110645438,-151.0,0.00015966,2]
[408680112,1774110645447,-433.0,0.00015969,2]
[408680113,1774110645457,-1078.35161779,0.00015972,2]
[408680114,1774110645466,-6945.0,0.00015973,2]
[408680115,1774110645475,-500.37853052,0.00015973,2]
[408680116,1774110645484,-500.64649173,0.00015973,2]
[408680117,1774110645493,-500.0,0.00015973,2]
[408680118,1774110645503,-500.0,0.00015973,2]
[408680119,1774110645512,-500.0,0.00015973,2]
[408680120,1774110645521,-160.048,0.00015973,2]
[408680121,1774110645531,-500.0,0.00015973,2]
[408680122,1774110645540,-500.0,0.00015973,2]
[408680123,1774110645549,-568.73940458,0.00015973,2]
[408680124,1774110645559,-500.0,0.00015973,2]
[408680125,1774110645569,-500.0,0.00015973,2]
[408680126,1774110645578,-500.0,0.00015973,2]
[408680127,1774110645588,-500.0,0.00015973,2]
[408680128,1774110645597,-500.0,0.00015973,2]
[408680129,1774110645606,-500.0,0.00015973,2]
[408680130,1774110645616,-500.0,0.00015973,2]
[408680131,1774110645627,-1000.0,0.00015975,2]
[408680132,1774110645636,-52566.1551912,0.00015979,2]
[408680133,1774110645645,-587.0,0.00015981,2]
[408680134,1774110645655,-587.0,0.00015981,2]
[408680135,1774110645665,-1000.0,0.00015982,2]
[408680136,1774110645674,-2000.0,0.00015987,2]
[408680137,1774110645683,-288.32393429,0.0001599,2]
[408680138,1774110645692,-288.32393429,0.0001599,2]
[408680139,1774110645702,-300.0,0.00015991,2]
[408680140,1774110645711,-1000.0,0.00015996,2]
[408680141,1774110645721,-151.0,0.00015997,2]
[408680142,1774110645731,-318.21033924,0.00015999,2]
[408680143,1774110645741,-1000.0,0.00015999,2]
[408680144,1774110645751,-161.206,0.00015999,2]
[408680145,1774110645760,-2001521.11492851,0.00016,2]
[408680146,1774110645769,-752289.58156907,0.00016,2]
[408680147,1774110645978,-522.08706422,0.00013638,2]
[408680148,1774110645988,-309.208988,0.00015053,7]
[408680149,1774110645997,-757.0,0.00015178,2]
[408680150,1774110646007,-495.0,0.00015178,2]
[408680151,1774110646016,-307.60381838,0.00015178,2]
[408680152,1774110646039,-187.39618162,0.00015178,2]
[408680153,1774110646049,-766.34950983,0.00015178,2]
[408680154,1774110646059,-30.74819823,0.0001536,2]
[408680158,1774110648098,-522.08706422,0.00014769,2]
[408680160,1774110648107,-278.04793578,0.00015178,2]
[408680161,1774110648354,-216.95206422,0.00015178,2]
[408680162,1774110648364,-495.0,0.00015178,2]
[408680163,1774110648375,-495.0,0.00015178,2]
[408680164,1774110648385,-120.25180177,0.0001536,2]
[408680166,1774110648394,-151.0,0.0001536,2]
[408680168,1774110648403,-1124.72491054,0.00015676,2]
[408680170,1774110648415,-4882.27508946,0.00015676,2]
[408680171,1774110648425,-1000.0,0.00015783,2]
[408680172,1774110648435,-150.0,0.00015855,2]
[408680173,1774110648445,-150.0,0.00015901,2]
[408680174,1774110648455,-151.0,0.00015966,2]
[408680175,1774110648464,-151.0,0.00015966,2]
[408680176,1774110648474,-150.0,0.00015979,2]
[408680177,1774110648488,-193.60696256,0.00015985,2]
[408680178,1774110648498,-39421.47450098,0.00016,2]
[408680179,1774110648609,-128000.40021812,0.00016,2]
[408680200,1774110694739,-369.0,0.00013738,2]
[408680201,1774110938948,-289.50515635,0.00013338,2]
[408680202,1774110939038,-1976.97915629,0.00013338,2]
[408680203,1774110963873,1169.99158454,0.00013338,2]
[408680204,1774111228794,-395.0,0.00013337,2]
[408680205,1774111228823,-300.0,0.00013337,2]
[408680206,1774111228850,-150.0,0.00013337,2]
[408680207,1774111228880,-300.0,0.00013337,2]
[408680208,1774111228908,-1200.0,0.00013337,2]
[408680209,1774111228936,-260.0,0.00013337,2]
[408680210,1774111228965,-385.99185288,0.00013338,2]
[408680211,1774111229150,-8810.92421478,0.00013338,2]
[408680212,1774111229228,-2719.96611026,0.00013338,2]
[408680213,1774111229261,-1895.04076447,0.00013338,2]
[408680214,1774111229298,-769.99625054,0.00013338,2]
[408680215,1774111229339,-10000.01,0.00013338,2]
[408680216,1774111229444,-1958.87324567,0.00013338,2]
[408680217,1774111229480,-6082.26350866,0.00013338,2]
[408680218,1774111229634,-10000.01,0.00013338,2]
[408680219,1774111229762,-1087.67354923,0.00013338,2]
[408680220,1774111229792,-2191.92962496,0.00013338,2]
[408680221,1774111229856,-3440.80365162,0.00013397,2]
[408680222,1774111229889,-1086.67854838,0.00013397,2]
[408680223,1774111229920,-288.32393429,0.00013428,2]
[408680224,1774111229949,-500.0,0.00013437,2]
[408680225,1774111229977,-500.0,0.00013437,2]
[408680226,1774111230005,-500.0,0.00013437,2]
[408680227,1774111230035,-500.0,0.00013437,2]
[408680228,1774111230065,-500.0,0.00013437,2]
[408680229,1774111230094,-500.0,0.00013437,2]
[408680230,1774111230121,-500.0,0.00013437,2]
[408680231,1774111230244,-500.0,0.00013437,2]
[408680232,1774111230276,-500.0,0.00013437,2]
[408680233,1774111230306,-500.0,0.00013437,2]
[408680234,1774111230339,-500.0,0.00013437,2]
[408680235,1774111230373,-500.0,0.00013437,2]
[408680236,1774111230410,-500.0,0.00013437,2]
[408680237,1774111230445,-500.0,0.00013437,2]
[408680238,1774111230480,-500.0,0.00013437,2]
[408680239,1774111230515,-500.0,0.00013437,2]
[408680240,1774111230549,-500.0,0.00013437,2]
[408680241,1774111230990,-250.00503466,0.00013437,2]
[408680242,1774111231013,-0.01,0.00013437,2]
[408680243,1774111231996,-249.98496534,0.00013437,2]
[408680244,1774111232031,-500.0,0.00013437,2]
[408680245,1774111232066,-500.0,0.00013437,2]
[408680246,1774111232100,-500.0,0.00013437,2]
[408680247,1774111232134,-500.0,0.00013437,2]
[408680248,1774111232172,-500.0,0.00013437,2]
[408680249,1774111232208,-500.0,0.00013437,2]
[408680250,1774111232242,-500.0,0.00013437,2]
[408680251,1774111232278,-500.0,0.00013437,2]
[408680252,1774111232491,-500.0,0.00013437,2]
[408680253,1774111232526,-0.04006932,0.00013437,2]
[408680254,1774111232646,-499.95993068,0.00013437,2]
[408680255,1774111232683,-500.0,0.00013437,2]
[408680256,1774111232718,-500.0,0.00013437,2]
[408680257,1774111232753,-500.0,0.00013437,2]
[408680258,1774111232788,-500.0,0.00013437,2]
[408680259,1774111232823,-500.0,0.00013437,2]
[408680260,1774111232857,-500.0,0.00013437,2]
[408680261,1774111232891,-500.0,0.00013437,2]
[408680262,1774111232925,-161.00326181,0.00013437,2]
[408680263,1774111232959,-500.0,0.00013437,2]
[408680264,1774111232996,-178.08361502,0.00013437,2]
[408680265,1774111233085,-321.91638498,0.00013437,2]
[408680266,1774111233124,-500.0,0.00013437,2]
[408680267,1774111233154,-500.0,0.00013437,2]
[408680268,1774111233184,-500.0,0.00013437,2]
[408680269,1774111233213,-428.68666408,0.00013437,2]
[408680270,1774111233248,-500.0,0.00013437,2]
[408680271,1774111233281,-571.70459122,0.00013437,2]
[408680272,1774111233315,-500.0,0.00013437,2]
[408680273,1774111233350,-500.0,0.00013437,2]
[408680274,1774111233384,-500.0,0.00013437,2]
[408680275,1774111233878,-339.38799349,0.00013437,2]
[408680276,1774111233892,-160.61200651,0.00013437,2]
[408680277,1774111233903,-250.0,0.00013437,2]
[408680278,1774111233912,-89.38799349,0.00013437,2]
[408680279,1774111233931,-355.39471944,0.00013437,2]
[408680280,1774111234927,-55.21728707,0.00013437,2]
[408680281,1774111234959,-500.0,0.00013437,2]
[408680282,1774111234989,-500.0,0.00013437,2]
[408680283,1774111235023,-500.0,0.00013437,2]
[408680284,1774111235052,-500.0,0.00013437,2]
[408680285,1774111235085,-247.05450196,0.00013437,2]
[408680286,1774111235115,-500.0,0.00013437,2]
[408680287,1774111235148,-500.0,0.00013437,2]
[408680288,1774111235181,-500.0,0.00013437,2]
[408680289,1774111235209,-179.42795835,0.00013437,2]
[408680290,1774111235243,-220.65319568,0.00013437,2]
[408680291,1774111274785,-220.99154744,0.00013338,2]
[408680292,1774111290113,-390.46916564,0.00013388,2]
[408680293,1774111290144,-300.0,0.00013437,2]
[408680294,1774111293070,216.609,0.00013169,2]
[408680295,1774111293098,2852.045,0.00013169,2]
[408680296,1774111298161,4018.0071275,0.00013435,2]
[408680297,1774111321200,300.0,0.00013437,2]
[408680298,1774111321871,150.0,0.00013437,2]
[408680299,1774111322166,300.0,0.00013437,2]
[408680300,1774111332942,500.0,0.0001343,2]
[408680301,1774111337420,200.0,0.0001343,2]
[408680302,1774111343057,82.41054122,0.0001343,2]
[408680303,1774111343317,68.58945878,0.0001343,2]
[408680304,1774111343643,151.0,0.0001343,2]
[408680305,1774111350910,7095.03160234,0.00013428,2]
[408680306,1774111366341,165.11,0.000134,2]
[408680307,1774111381242,300.0,0.00013437,2]
[408680308,1774111393402,2220.27893888,0.00013338,2]
[408680309,1774111393427,111.62844921,0.00013338,2]
[408680310,1774111416985,257.32790192,0.00013338,2]
[408680311,1774111441196,300.0,0.00013437,2]
[408680312,1774111443669,185.23,0.00013327,2]
[408680313,1774111447886,287.74314858,0.00013437,2]
[408680314,1774111458443,8858.08050029,0.00013338,2]
[408680315,1774111458464,10000.01,0.00013338,2]
[408680316,1774111458485,997.68359971,0.00013338,2]
[408680317,1774111464549,2500.0,0.00013338,2]
[408680318,1774111495763,6502.32640029,0.00013338,2]
[408680319,1774111495786,3875.4748923,0.00013338,2]
[408680320,1774111501366,1200.0,0.00013437,2]
[408680321,1774111501985,150.0,0.00013437,2]
[408680322,1774111502332,300.0,0.00013437,2]
[408680323,1774111506451,200.0,0.00013437,2]
[408680324,1774111508188,4274.5351077,7.945e-05,2]
[408680325,1774111508210,10000.01,7.945e-05,2]
[408680326,1774111508231,8259.0676893,7.945e-05,2]
[408680327,1774111516433,1740.9423107,0.00013365,2]
[408680328,1774111516456,10000.01,0.00013365,2]
[408680329,1774111516478,5487.9776893,0.00013365,2]
[408680330,1774111524191,500.0,0.00013437,2]
[408680331,1774111524221,500.0,0.00013437,2]
[408680332,1774111524269,500.0,0.00013437,2]
[408680333,1774111524355,500.0,0.00013437,2]
[408680334,1774111524385,500.0,0.00013437,2]
[408680335,1774111524416,500.0,0.00013437,2]
[408680336,1774111524445,500.0,0.00013437,2]
[408680337,1774111524474,500.0,0.00013437,2]
[408680338,1774111524503,500.0,0.00013437,2]
[408680339,1774111524532,500.0,0.00013437,2]
[408680340,1774111524562,500.0,0.00013437,2]
[408680341,1774111524592,500.0,0.00013437,2]
[408680342,1774111524645,500.0,0.00013437,2]
[408680343,1774111524676,500.0,0.00013437,2]
[408680344,1774111524706,500.0,0.00013437,2]
[408680345,1774111524740,500.0,0.00013437,2]
[408680346,1774111524770,500.0,0.00013437,2]
[408680347,1774111524800,336.76393288,0.00013437,2]
[408680348,1774111524828,500.0,0.00013437,2]
[408680349,1774111524882,500.0,0.00013437,2]
[408680350,1774111524911,163.24606712,0.00013437,2]
[408680351,1774111524935,336.75393288,0.00013437,2]
[408680352,1774111524965,500.0,0.00013437,2]
[408680353,1774111524994,500.0,0.00013437,2]
[408680354,1774111525028,500.0,0.00013437,2]
[408680355,1774111525057,500.0,0.00013437,2]
[408680356,1774111525087,500.0,0.00013437,2]
[408680357,1774111525122,500.0,0.00013437,2]
[408680358,1774111525157,500.0,0.00013437,2]
[408680359,1774111525191,500.0,0.00013437,2]
[408680360,1774111525220,500.0,0.00013437,2]
[408680361,1774111525250,500.0,0.00013437,2]
[408680362,1774111525280,500.0,0.00013437,2]
[408680363,1774111525310,500.0,0.00013437,2]
[408680364,1774111525346,500.0,0.00013437,2]
[408680365,1774111525378,500.0,0.00013437,2]
[408680366,1774111525410,500.0,0.00013437,2]
[408680367,1774111525444,500.0,0.00013437,2]
[408680368,1774111525474,500.0,0.00013437,2]
[408680369,1774111525507,500.0,0.00013437,2]
[408680370,1774111525536,500.0,0.00013437,2]
[408680371,1774111525567,163.25606712,0.00013437,2]
[408680372,1774111525592,336.74393288,0.00013437,2]
[408680373,1774111525654,500.0,0.00013437,2]
[408680374,1774111535349,9163.26606712,0.00013338,2]
[408680375,1774111535376,1599.72885392,0.00013338,2]
[408680376,1774111536370,6762.8291,0.00013338,2]
[408680377,1774111591128,-430.18278866,0.00013435,2]
[408680378,1774111645081,-912.6408573,0.00013338,2]
[408680379,1774111648770,400.0,0.000126,4]
[408680380,1774111650864,900.0,0.000127,4]
[408680381,1774111652094,-1735.88782937,0.00013338,2]
[408680382,1774111652989,1400.0,0.000128,4]
[408680383,1774111655100,1900.0,0.000129,4]
[408680384,1774111732949,6679.69,0.00012732,2]
[408680385,1774111831600,-1200.0,0.00013337,2]
[408680386,1774111831610,-2040.41896457,0.00013338,2]
[408680387,1774111831620,-171.55193462,0.00013338,2]
[408680388,1774111831630,-250.0,0.00013338,2]
[408680389,1774111831639,-772.79130486,0.00013338,2]
[408680390,1774111831652,-1000.0,0.00013338,2]
[408680391,1774111831663,-2319.81522465,0.00013338,2]
[408680392,1774111831675,-3014.92728382,0.00013338,2]
[408680393,1774111831684,-167.46006388,0.00013338,2]
[408680394,1774111831696,-1393413.84795032,0.00013338,2]
[408680395,1774111831707,-396.97071881,0.00013338,2]
[408680396,1774111831719,-106021.72126699,0.00013338,2]
[408680397,1774111831729,-300.0,0.00013422,2]
[408680398,1774111831738,-21425.4846849,0.00013423,2]
[408680399,1774111831748,-192.21595619,0.00013428,2]
[408680400,1774111831758,-300.0,0.00013434,2]
[408680401,1774111831767,-6538.40074044,0.00013435,2]
[408680402,1774111831776,-150.0,0.00013436,2]
[408680403,1774111831786,-1000.0,0.00013437,2]
[408680404,1774111831795,-1000.0,0.00013437,2]
[408680405,1774111831805,-500.0,0.00013437,2]
[408680406,1774111831814,-500.0,0.00013437,2]
[408680407,1774111831824,-500.0,0.00013437,2]
[408680408,1774111831833,-500.0,0.00013437,2]
[408680409,1774111831843,-500.0,0.00013437,2]
[408680410,1774111831852,-500.0,0.00013437,2]
[408680411,1774111831862,-500.0,0.00013437,2]
[408680412,1774111831871,-500.0,0.00013437,2]
[408680413,1774111831881,-500.0,0.00013437,2]
[408680414,1774111831890,-500.0,0.00013437,2]
[408680415,1774111831900,-193.76250543,0.00013437,2]
[408680416,1774111831909,-500.0,0.00013437,2]
[408680417,1774111831919,-500.0,0.00013437,2]
[408680418,1774111831930,-500.0,0.00013437,2]
[408680419,1774111831941,-272.93815137,0.00013437,2]
[408680420,1774111831950,-500.0,0.00013437,2]
[408680421,1774111831961,-223.19132808,0.00013437,2]
[408680422,1774111831971,-500.0,0.00013437,2]
[408680423,1774111831982,-500.0,0.00013437,2]
[408680424,1774111831992,-500.0,0.00013437,2]
[408680425,1774111832002,-500.0,0.00013437,2]
[408680426,1774111832011,-500.0,0.00013437,2]
[408680427,1774111832021,-500.0,0.00013437,2]
[408680428,1774111832030,-500.0,0.00013437,2]
[408680429,1774111832041,-500.0,0.00013437,2]
[408680430,1774111832050,-500.34954771,0.00013437,2]
[408680431,1774111832060,-600.0,0.00013437,2]
[408680432,1774111832070,-505.0,0.00013437,2]
[408680433,1774111832079,-200.0,0.00013438,2]
[408680434,1774111832088,-715676.85167771,0.00013438,2]
[408680435,1774111832113,-624.35787928,0.00013438,2]
[408680436,1774111832125,-1900.0,0.00013438,2]
[408680437,1774111832137,-14195.18713073,0.00013438,2]
[408680438,1774111832148,-1309.45761818,0.00013438,2]
[408680442,1774111837672,-426.61846658,0.00013438,2]
[408680443,1774111837832,-507.27154063,0.00013438,2]
[408680444,1774111837844,-5861.0,0.00013438,2]
[408680503,1774111839782,-1759499.25568689,0.00013438,2]
[408680504,1774111839792,-792.4404,0.00013438,2]
[408680505,1774111839802,-788.74,0.00013439,2]
[408680506,1774111839812,-8554.92,0.00013479,2]
[408680507,1774111839821,-500.0,0.00013573,2]
[408680508,1774111839831,-163.4894394,0.00013573,2]
[408680509,1774111839842,-502.82851011,0.00013573,2]
[408680510,1774111839851,-535.77181078,0.00013573,2]
[408680511,1774111839861,-503.22543564,0.00013573,2]
[408680512,1774111839871,-310.27363011,0.00013573,2]
[408680513,1774111839881,-500.0,0.00013573,2]
[408680514,1774111839891,-500.0,0.00013573,2]
[408680515,1774111839900,-167.44290588,0.00013573,2]
[408680516,1774111839911,-500.0,0.00013573,2]
[408680517,1774111839921,-500.6537405,0.00013573,2]
[408680518,1774111839931,-502.08297344,0.00013573,2]
[408680519,1774111839941,-500.0,0.00013573,2]
[408680520,1774111839951,-450.82293115,0.00013573,2]
[408680521,1774111839961,-500.0,0.00013573,2]
[408680522,1774111839971,-1467.64,0.00013573,2]
[408680523,1774111839981,-210.47643994,0.00013598,2]
[408680524,1774111839991,-841.96406,0.00013598,2]
[408680525,1774111840000,-10762.99492104,0.00013623,2]
[408680526,1774111840010,-3517.5069,0.00013638,2]
[408680527,1774111840020,-500.0,0.00013673,2]
[408680528,1774111840030,-500.0,0.00013673,2]
[408680529,1774111840039,-457.24188603,0.00013673,2]
[408680530,1774111840049,-504.03256925,0.00013673,2]
[408680531,1774111840059,-429.3358411,0.00013673,2]
[408680532,1774111840069,-333.74740353,0.00013673,2]
[408680533,1774111840078,-166.72,0.00013673,2]
[408680534,1774111840088,-4052.08,0.00013698,2]
[408680535,1774111840099,-4052.08,0.00013698,2]
[408680536,1774111840109,-4052.08,0.00013698,2]
[408680537,1774111840119,-4052.08,0.00013698,2]
[408680538,1774111840129,-4052.08,0.00013698,2]
[408680539,1774111840139,-4052.08,0.00013698,2]
[408680540,1774111840148,-4052.08,0.00013698,2]
[408680541,1774111840158,-4052.08,0.00013698,2]
[408680542,1774111840168,-4052.08,0.00013698,2]
[408680543,1774111840177,-4052.08,0.00013698,2]
[408680544,1774111840187,-4052.08,0.00013698,2]
[408680545,1774111840197,-4999.99,0.00013698,2]
[408680546,1774111840207,-299.99,0.00013698,2]
[408680547,1774111840216,-9999.99,0.00013698,2]
[408680548,1774111840226,-9999.99,0.00013698,2]
[408680549,1774111840235,-9999.99,0.00013698,2]
[408680551,1774111840245,-499.99,0.00013698,2]
[408680553,1774111840254,-150.99,0.00013698,2]
[408680555,1774111840264,-150.99,0.00013698,2]
[408680556,1774111840273,-9999.99,0.00013698,2]
[408680557,1774111840283,-999.99,0.00013698,2]
[408680558,1774111840293,-1478.87,0.00013698,2]
[408680559,1774111840303,-9467.71,0.00013698,2]
[408680560,1774111840314,-294.67,0.00013699,2]
[408680561,1774111840324,-187.04841564,0.00013699,2]
[408680562,1774111840334,-229.19,0.000137,2]
[408680563,1774111840344,-749.57,0.000137,2]
[408680564,1774111840355,-456.59,0.000137,2]
[408680565,1774111840365,-825.99,0.000137,2]
[408680566,1774111840375,-19999.99,0.000137,2]
[408680567,1774111840385,-2040.41896456,0.00013704,2]
[408680568,1774111840397,-131.0,0.00013738,2]
[408680569,1774111840407,-220.99154739,0.00013765,2]
[408680570,1774111840416,-500.0,0.00013847,2]
[408680571,1774111840426,-1467.64,0.00013847,2]
[408680573,1774111840438,-10762.99492104,0.00013907,2]
[408680574,1774111840448,-1521.0,0.00013927,2]
[408680575,1774111840457,-1521.0,0.00013927,2]
[408680576,1774111840468,-1521.0,0.00013927,2]
[408680577,1774111840478,-1521.0,0.00013927,2]
[408680578,1774111840487,-1521.0,0.00013927,2]
[408680579,1774111840496,-1521.0,0.00013927,2]
[408680580,1774111840506,-1521.0,0.00013927,2]
[408680581,1774111840516,-1521.0,0.00013927,2]
[408680582,1774111840525,-1521.0,0.00013927,2]
[408680583,1774111840539,-1521.0,0.00013927,2]
[408680584,1774111840548,-1521.0,0.00013927,2]
[408680585,1774111840558,-1521.0,0.00013927,2]
[408680586,1774111840567,-1521.0,0.00013927,2]
[408680587,1774111840577,-1521.0,0.00013927,2]
[408680588,1774111840587,-1521.0,0.00013927,2]
[408680589,1774111840597,-1521.0,0.00013927,2]
[408680590,1774111840606,-1521.0,0.00013927,2]
[408680591,1774111840616,-1521.0,0.00013927,2]
[408680592,1774111840626,-1361.4671969,0.00013927,2]
[408680593,1774111840635,-152.91910529,0.00013927,2]
[408680594,1774111840645,-200.0,0.00013986,2]
[408680595,1774111840656,-2889.52,0.0001403,2]
[408680596,1774111840665,-3346.47,0.00014043,2]
[408680597,1774111840675,-190.44762194,0.00014045,2]
[408680598,1774111840687,-737.75943688,0.0001405,2]
[408680599,1774111840697,-702.0,0.00014069,2]
[408680600,1774111840706,-2040.41896456,0.0001407,2]
[408680601,1774111840716,-4060.56,0.00014083,2]
[408680602,1774111840726,-500.0,0.0001411,2]
[408680603,1774111840736,-500.0,0.00014121,2]
[408680604,1774111840747,-500.5356408,0.00014121,2]
[408680605,1774111840756,-1000.0,0.00014121,2]
[408680606,1774111840766,-502.75906759,0.00014121,2]
[408680607,1774111840776,-1000.0,0.00014121,2]
[408680608,1774111840785,-1000.0,0.00014121,2]
[408680609,1774111840795,-1467.64,0.00014121,2]
[408680610,1774111840805,-500.0,0.00014152,2]
[408680611,1774111840815,-401.15,0.00014181,2]
[408680612,1774111840825,-220.99154739,0.00014192,2]
[408680613,1774111840835,-10762.99492104,0.00014192,2]
[408680614,1774111840847,-1000.0,0.00014221,2]
[408680615,1774111840858,-1000.0,0.00014221,2]
[408680616,1774111840869,-166.72,0.00014237,2]
[408680617,1774111840878,-170.03,0.00014258,2]
[408680618,1774111840888,-16092.52842095,0.00014339,2]
[408680619,1774111840897,-294.67,0.00014384,2]
[408680620,1774111840907,-500.0,0.00014395,2]
[408680621,1774111840916,-1467.64,0.00014395,2]
[408680622,1774111840925,-2423.0,0.000144,2]
[408680623,1774111840934,-2040.41896456,0.00014436,2]
[408680624,1774111840944,-10762.99492104,0.00014477,2]
[408680625,1774111840954,-200.0,0.00014534,2]
[408680626,1774111840963,-255.0,0.00014551,2]
[408680627,1774111840973,-220.99154739,0.00014619,2]
[408680628,1774111840982,-171.55193461,0.00014619,2]
[408680629,1774111840992,-879.24,0.00014654,2]
[408680630,1774111841002,-1467.64,0.00014668,2]
[408680631,1774111841011,-1680.0,0.00014671,2]
[408680632,1774111841021,-193.0,0.00014672,2]
[408680633,1774111841031,-300.0,0.00014672,2]
[408680634,1774111841041,-300.0,0.00014672,2]
[408680635,1774111841051,-2500.0,0.00014672,2]
[408680636,1774111841060,-2500.0,0.00014672,2]
[408680637,1774111841070,-250.0,0.00014672,2]
[408680638,1774111841080,-5000.0,0.00014672,2]
[408680639,1774111841089,-250.0,0.00014672,2]
[408680640,1774111841099,-166.66,0.00014709,2]
[408680641,1774111841108,-420.0,0.00014713,2]
[408680642,1774111841118,-318.21033924,0.00014718,2]
[408680643,1774111841128,-1000.0,0.00014718,2]
[408680644,1774111841137,-227.0,0.00014726,2]
[408680645,1774111841147,-161.31,0.00014743,2]
[408680646,1774111841156,-210.47643993,0.00014749,2]
[408680647,1774111841165,-841.96406,0.00014749,2]
[408680648,1774111841174,-10762.99492104,0.00014761,2]
[408680649,1774111841183,-1500.0,0.00014768,2]
[408680650,1774111841192,-1000.0,0.00014768,2]
[408680651,1774111841202,-196.889844,0.00014784,7]
[408680652,1774111841212,-376.383784,0.00014784,7]
[408680653,1774111841221,-453.745919,0.00014784,7]
[408680654,1774111841230,-344.277323,0.00014793,7]
[408680655,1774111841240,-166.72,0.00014801,2]
[408680656,1774111841250,-2040.41896456,0.00014802,2]
[408680657,1774111841260,-4052.08,0.00014854,2]
[408680658,1774111841270,-162.124824,0.00014874,7]
[408680659,1774111841279,-3240.0,0.00014887,2]
[408680660,1774111841292,-235.0,0.00014908,2]
[408680661,1774111841303,-879.24,0.00014928,2]
[408680662,1774111841313,-557.72229793,0.0001493,2]
[408680663,1774111841322,-9211.34798985,0.0001493,2]
[408680664,1774111841332,-500.0,0.0001493,2]
[408680665,1774111841342,-500.0,0.0001493,2]
[408680666,1774111841352,-500.0,0.0001493,2]
[408680667,1774111841362,-500.0,0.0001493,2]
[408680668,1774111841372,-500.0,0.0001493,2]
[408680669,1774111841382,-348.03702285,0.0001493,2]
[408680670,1774111841397,-500.0,0.0001493,2]
[408680671,1774111841408,-500.0,0.0001493,2]
[408680672,1774111841420,-500.0,0.0001493,2]
[408680673,1774111841431,-500.0,0.0001493,2]
[408680674,1774111841441,-500.0,0.0001493,2]
[408680675,1774111841452,-500.0,0.0001493,2]
[408680676,1774111841463,-500.0,0.0001493,2]
[408680677,1774111841473,-500.0,0.0001493,2]
[408680678,1774111841483,-500.0,0.0001493,2]
[408680679,1774111841493,-151.0,0.0001493,2]
[408680680,1774111841502,-1467.64,0.00014942,2]
[408680681,1774111841512,-9552.16786547,0.00014985,2]
[408680682,1774111841521,-500.0,0.00014985,2]
[408680683,1774111841531,-151.0,0.00014985,2]
[408680684,1774111841541,-500.56236053,0.00015,2]
[408680685,1774111841550,-500.84837608,0.00015,2]
[408680686,1774111841560,-166.66,0.00015019,2]